[Event "SixDays Budapest IM-A 09-2024"]
[Site "Budapest"]
[Date "2024.09.25"]
[Round "2.4"]
[White "Pavan Karthikeya Varma Gunturi"]
[Black "Kao, Jamison Edrich"]
[Result "1-0"]
[ECO "B56"]
[WhiteElo "2056"]
[BlackElo "2125"]
[Annotator "RC"]
[PlyCount "109"]
[EventDate "2024.09.24"]
[EventType "tourn"]
[EventCountry "HUN"]
[SourceTitle "playchess.com"]
[Source "ChessBase"]
[SourceQuality "1"]
[TimeControl "5400+30"]

1. e4 {[%emt 0:00:10]} c5 {[%emt 0:00:02]} 2. Nf3 {[%emt 0:00:22]} d6 {[%emt 0:00:04]} 3. d4 {[%emt 0:00:25]} cxd4 {[%emt 0:00:03]} 4. Nxd4 {[%emt 0:00:21]} Nf6 {[%emt 0:00:03]} 5. Nc3 {[%emt 0:00:23]} Bd7 {[%emt 0:00:03]} 6. Be2 {[%emt 0:03:24]} Nc6 {[%emt 0:02:07]} 7. Be3 {[%emt 0:01:03]} e6 {[%emt 0:02:50]} 8. O-O {[%emt 0:01:59]} Be7 {[%emt 0:00:12]} 9. Qd2 {[%emt 0:02:24]} a6 {[%emt 0:00:36]} 10. Rad1 {[%emt 0:02:50]} b5 {[%emt 0:02:55]} 11. a3 {[%emt 0:01:32]} Ne5 {[%emt 0:03:29]} 12. Nf3 {[%emt 0:05:00]} O-O {[%emt 0:00:56]} 13. Bd4 {[%emt 0:04:11]} Qc7 {[%emt 0:01:24]} 14. h3 {[%emt 0:02:30]} Bc6 {[%emt 0:01:52]} 15. Qe3 {[%emt 0:01:54]} Rab8 {[%emt 0:07:49]} 16. Nxe5 {[%emt 0:05:36]} dxe5 {[%emt 0:00:13]} 17. Bc5 {[%emt 0:00:46]} Rfc8 {[%emt 0:05:39]} 18. Bxe7 {[%emt 0:03:34]} Qxe7 {[%emt 0:00:04]} 19. Rd2 {[%emt 0:00:44]} a5 {[%emt 0:00:36]} 20. Bd3 {[%emt 0:04:13]} b4 {[%emt 0:01:21]} 21. axb4 {[%emt 0:00:58]} Qxb4 {[%emt 0:01:00]} 22. Rb1 {[%emt 0:03:29]} a4 {[%emt 0:16:34]} 23. Na2 {[%emt 0:02:12]} Qd4 {[%emt 0:12:52]} 24. Qxd4 {[%emt 0:02:35]} exd4 {[%emt 0:00:03]} 25. f3 {[%emt 0:00:23]} Nd7 {[%emt 0:01:23]} 26. Ba6 {[%emt 0:01:49]} Rd8 {[%emt 0:10:33]} 27. Rxd4 {[%emt 0:00:52]} Nc5 {[%emt 0:00:08]} 28. Rc4 {[%emt 0:03:23]} Nxa6 {[%emt 0:00:45]} 29. Rxc6 {[%emt 0:00:59]} Nb4 {[%emt 0:00:41]} 30. Nxb4 {[%emt 0:00:27]} Rxb4 {[%emt 0:00:05]} 31. c3 {[%emt 0:01:15]} Rbb8 {[%emt 0:03:42]} 32. Ra6 {[%emt 0:02:06]} Rd2 {[%emt 0:00:45]} 33. Rxa4 {[%emt 0:01:09]} g5 {[%emt 0:00:36]} 34. Rb4 {[%emt 0:10:40]} Ra8 {[%emt 0:00:15]} 35. Kh2 {[%emt 0:05:01]} Kg7 {[%emt 0:03:53]} 36. Rb5 {[%emt 0:01:22]} Kg6 {[%emt 0:00:21]} 37. c4 {[%emt 0:01:51]} Rc2 {[%emt 0:04:20]} 38. c5 {[%emt 0:00:49]} Ra2 {[%emt 0:03:26]} 39. Rg1 {[%emt 0:01:47]} f5 {[%emt 0:06:24]} 40. exf5+ {[%emt 0:02:07]} exf5 {[%emt 0:03:17]} 41. Rd1 {[%emt 0:02:37]} Kh5 {[%emt 0:03:55]} 42. Rd7 {[%emt 0:09:51]} h6 {[%emt 0:00:14]} 43. Rd1 {[%emt 0:01:17]} Kh4 {[%emt 0:00:46]} 44. Rb6 {[%emt 0:01:04]} h5 {[%emt 0:00:24]} 45. Rb3 {[%emt 0:03:46]} f4 {[%emt 0:00:17]} 46. Rb4 {[%emt 0:01:04]} Ra5 {[%emt 0:01:58]} 47. c6 {[%emt 0:01:37]} Rac5 {[%emt 0:00:06]} 48. Rb6 {[%emt 0:01:11]} Rxc6 {[%emt 0:01:30]} 49. Rxc6 {[%emt 0:00:43]} Rxc6 {[%emt 0:00:02]} 50. Rd4 {[%emt 0:00:21]} Rc2 {[%emt 0:00:10]} 51. b4 {[%emt 0:00:22]} Rb2 {[%emt 0:00:10]} 52. b5 {[%emt 0:00:41]} g4 {[%emt 0:02:43]} 53. hxg4 {[%emt 0:00:59]} Rxb5 {[%emt 0:00:48]} 54. Rxf4 {[%emt 0:00:16]} Rb1 {[%emt 0:00:21]} 55. Rf5 {[%emt 0:00:47]} 1-0

[Event "SixDays Budapest IM-A 09-2024"]
[Site "Budapest"]
[Date "2024.09.25"]
[Round "2.5"]
[White "Pacher, Milan"]
[Black "Wadifa, Ahmed"]
[Result "1-0"]
[ECO "E01"]
[WhiteElo "2343"]
[BlackElo "1988"]
[Annotator "RC"]
[PlyCount "53"]
[EventDate "2024.09.24"]
[EventType "tourn"]
[EventCountry "HUN"]
[SourceTitle "playchess.com"]
[Source "ChessBase"]
[SourceQuality "1"]
[TimeControl "5400+30"]

1. d4 {[%emt 0:00:55]} d5 {[%emt 0:04:32]} 2. c4 {[%emt 0:00:06]} e6 {[%emt 0:00:07]} 3. g3 {[%emt 0:00:04]} Nf6 {[%emt 0:01:42]} 4. Bg2 {[%emt 0:00:04]} b6 {[%emt 0:02:05]} 5. Nc3 {[%emt 0:02:55]} Bb7 {[%emt 0:00:40]} 6. Nh3 {[%emt 0:00:08]} Bb4 {[%emt 0:02:41]} 7. O-O {[%emt 0:00:56]} O-O {[%emt 0:00:36]} 8. Nf4 {[%emt 0:03:04]} Bxc3 {[%emt 0:07:00]} 9. bxc3 {[%emt 0:00:01]} Ba6 {[%emt 0:00:12]} 10. cxd5 {[%emt 0:00:14]} exd5 {[%emt 0:00:06]} 11. Re1 {[%emt 0:05:39]} Re8 {[%emt 0:02:10]} 12. f3 {[%emt 0:00:08]} g5 {[%emt 0:20:40]} 13. Nd3 {[%emt 0:00:07]} g4 {[%emt 0:00:19]} 14. Ne5 {[%emt 0:02:21]} gxf3 {[%emt 0:11:20]} 15. exf3 {[%emt 0:00:07]} Qd6 {[%emt 0:01:03]} 16. Qd2 {[%emt 0:01:53]} Qf8 {[%emt 0:01:38]} 17. Qg5+ {[%emt 0:00:28]} Qg7 {[%emt 0:00:08]} 18. Qh4 {[%emt 0:00:07]} h5 {[%emt 0:07:26]} 19. Bg5 {[%emt 0:00:05]} Nbd7 {[%emt 0:03:50]} 20. f4 {[%emt 0:03:24]} Bb7 {[%emt 0:05:12]} 21. Bh3 {[%emt 0:06:49]} Nxe5 {[%emt 0:01:41]} 22. fxe5 {[%emt 0:00:25]} Nh7 {[%emt 0:01:30]} 23. Bf4 {[%emt 0:01:05]} Qg6 {[%emt 0:01:41]} 24. e6 {[%emt 0:00:24]} fxe6 {[%emt 0:01:42]} 25. Re5 {[%emt 0:00:07]} c5 {[%emt 0:08:15]} 26. Rae1 {[%emt 0:01:34]} Bc8 {[%emt 0:02:18]} 27. Bf5 {[%emt 0:00:34]} 1-0

[Event "SixDays Budapest IM-A 09-2024"]
[Site "Budapest"]
[Date "2024.09.25"]
[Round "3.1"]
[White "Wadifa, Ahmed"]
[Black "Bashylina, Luisa"]
[Result "0-1"]
[ECO "B90"]
[WhiteElo "1988"]
[BlackElo "2124"]
[Annotator "RC"]
[PlyCount "112"]
[EventDate "2024.09.24"]
[EventType "tourn"]
[EventCountry "HUN"]
[SourceTitle "playchess.com"]
[Source "ChessBase"]
[SourceQuality "1"]
[TimeControl "5400+30"]

1. e4 {[%emt 0:04:54]} c5 {[%emt 0:00:02]} 2. Nf3 {[%emt 0:00:54]} d6 {[%emt 0:00:04]} 3. d4 {[%emt 0:00:06]} cxd4 {[%emt 0:00:03]} 4. Nxd4 {[%emt 0:00:08]} Nf6 {[%emt 0:00:04]} 5. Nc3 {[%emt 0:00:06]} a6 {[%emt 0:00:02]} 6. Be3 {[%emt 0:00:11]} e5 {[%emt 0:00:04]} 7. Nb3 {[%emt 0:00:05]} Be7 {[%emt 0:00:04]} 8. f3 {[%emt 0:00:08]} Be6 {[%emt 0:00:06]} 9. Qd2 {[%emt 0:00:12]} O-O {[%emt 0:00:07]} 10. O-O-O {[%emt 0:00:20]} b5 {[%emt 0:00:07]} 11. g4 {[%emt 0:04:59]} Nbd7 {[%emt 0:00:05]} 12. g5 {[%emt 0:02:37]} Nh5 {[%emt 0:00:18]} 13. Nd5 {[%emt 0:00:32]} Bxd5 {[%emt 0:00:54]} 14. exd5 {[%emt 0:00:09]} f6 {[%emt 0:04:10]} 15. Na5 {[%emt 0:06:40]} fxg5 {[%emt 0:02:50]} 16. Nc6 {[%emt 0:00:36]} Qe8 {[%emt 0:00:07]} 17. Nxe7+ {[%emt 0:04:42]} Qxe7 {[%emt 0:00:04]} 18. Bxg5 {[%emt 0:00:08]} Ndf6 {[%emt 0:02:15]} 19. Bh3 {[%emt 0:03:11]} Kh8 {[%emt 0:05:00]} 20. Rhe1 Qc7 {[%emt 0:05:45]} 21. Re3 {[%emt 0:11:30]} h6 {[%emt 0:11:05]} 22. Rc3 {[%emt 0:07:20]} Qe7 {[%emt 0:06:36]} 23. Be3 {[%emt 0:03:56]} Ng8 {[%emt 0:04:04]} 24. Re1 {[%emt 0:09:46]} Qh4 {[%emt 0:06:31]} 25. Bg4 {[%emt 0:05:15]} Nf4 {[%emt 0:03:47]} 26. Rg1 {[%emt 0:01:04]} Ne7 {[%emt 0:04:02]} 27. Bxf4 {[%emt 0:03:21]} Rxf4 {[%emt 0:00:40]} 28. Be6 {[%emt 0:00:11]} Raf8 {[%emt 0:03:21]} 29. Qg2 {[%emt 0:01:17]} Qf6 {[%emt 0:00:15]} 30. a3 {[%emt 0:02:04]} a5 {[%emt 0:03:26]} 31. Rb3 {[%emt 0:03:07]} a4 {[%emt 0:03:11]} 32. Rxb5 {[%emt 0:05:53]} Rxf3 {[%emt 0:00:43]} 33. Rb7 {[%emt 0:01:22]} Rf2 {[%emt 0:04:21]} 34. Qg4 {[%emt 0:03:23]} Rf1+ {[%emt 0:02:19]} 35. Rxf1 {[%emt 0:00:05]} Qxf1+ {[%emt 0:00:03]} 36. Qd1 {[%emt 0:00:06]} Qc4 {[%emt 0:04:46]} 37. Rb4 {[%emt 0:00:57]} Qa2 {[%emt 0:03:34]} 38. Qd3 {[%emt 0:12:15]} Qa1+ {[%emt 0:03:28]} 39. Kd2 {[%emt 0:00:01]} Rf2+ {[%emt 0:01:11]} 40. Kc3 {[%emt 0:00:01]} Qe1+ {[%emt 0:00:34]} 41. Kc4 {[%emt 0:00:02]} e4 {[%emt 0:00:44]} 42. Rb8+ {[%emt 0:00:17]} Kh7 {[%emt 0:00:07]} 43. Qc3 {[%emt 0:00:45]} Qd1 {[%emt 0:01:08]} 44. Rb7 {[%emt 0:01:49]} Rxc2 {[%emt 0:00:30]} 45. Rxe7 {[%emt 0:00:29]} Rxc3+ {[%emt 0:00:29]} 46. bxc3 {[%emt 0:00:08]} Qd3+ {[%emt 0:00:19]} 47. Kb4 {[%emt 0:00:09]} e3 {[%emt 0:00:18]} 48. Bg4 {[%emt 0:04:21]} Qxd5 {[%emt 0:00:07]} 49. h3 {[%emt 0:01:21]} Qc5+ {[%emt 0:01:56]} 50. Kxa4 {[%emt 0:00:11]} Qc4+ {[%emt 0:00:10]} 51. Ka5 {[%emt 0:00:07]} Qxc3+ {[%emt 0:00:04]} 52. Kb5 {[%emt 0:00:11]} Qxa3 {[%emt 0:00:43]} 53. Bf5+ {[%emt 0:01:25]} Kg8 {[%emt 0:00:08]} 54. Bg6 {[%emt 0:00:43]} Qc5+ {[%emt 0:01:50]} 55. Ka4 {[%emt 0:00:56]} Qc6+ 56. Kb3 {[%emt 0:00:50]} d5 {[%emt 0:00:20]} 0-1

[Event "SixDays Budapest IM-A 09-2024"]
[Site "Budapest"]
[Date "2024.09.25"]
[Round "3.2"]
[White "Kao, Jamison Edrich"]
[Black "Pacher, Milan"]
[Result "1/2-1/2"]
[ECO "B31"]
[WhiteElo "2125"]
[BlackElo "2343"]
[Annotator "RC"]
[PlyCount "124"]
[EventDate "2024.09.24"]
[EventType "tourn"]
[EventCountry "HUN"]
[SourceTitle "playchess.com"]
[Source "ChessBase"]
[SourceQuality "1"]
[TimeControl "5400+30"]

1. e4 {[%emt 0:00:01]} c5 {[%emt 0:16:32]} 2. Nf3 {[%emt 0:00:02]} Nc6 {[%emt 0:00:05]} 3. Bb5 {[%emt 0:00:03]} g6 {[%emt 0:00:05]} 4. Bxc6 {[%emt 0:00:03]} bxc6 {[%emt 0:00:03]} 5. d4 {[%emt 0:00:03]} Bg7 {[%emt 0:00:23]} 6. dxc5 {[%emt 0:00:06]} Qa5+ {[%emt 0:00:07]} 7. Nbd2 {[%emt 0:00:10]} Ba6 {[%emt 0:01:10]} 8. Rb1 {[%emt 0:00:04]} Qxa2 {[%emt 0:04:01]} 9. b4 {[%emt 0:00:05]} Nf6 {[%emt 0:02:35]} 10. Rb3 {[%emt 0:04:21]} Qa4 {[%emt 0:07:54]} 11. Ra3 {[%emt 0:03:50]} Qxb4 {[%emt 0:00:06]} 12. Rxa6 {[%emt 0:00:44]} Nxe4 {[%emt 0:00:05]} 13. O-O {[%emt 0:02:41]} Nc3 {[%emt 0:00:23]} 14. Qe1 {[%emt 0:00:54]} Qb5 {[%emt 0:00:25]} 15. Ra3 {[%emt 0:00:36]} Ne2+ {[%emt 0:00:48]} 16. Kh1 {[%emt 0:00:12]} Nxc1 {[%emt 0:00:06]} 17. Re3 {[%emt 0:00:46]} O-O {[%emt 0:07:43]} 18. Qxc1 {[%emt 0:00:25]} Qxc5 {[%emt 0:00:04]} 19. Nb3 {[%emt 0:04:33]} Qb4 {[%emt 0:00:05]} 20. Qe1 {[%emt 0:04:03]} Qxe1 {[%emt 0:00:11]} 21. Rfxe1 {[%emt 0:00:09]} e6 {[%emt 0:00:05]} 22. Ne5 {[%emt 0:00:36]} a5 {[%emt 0:01:08]} 23. Nxd7 {[%emt 0:04:47]} Rfd8 {[%emt 0:00:16]} 24. Ne5 {[%emt 0:02:19]} a4 {[%emt 0:00:31]} 25. Na1 {[%emt 0:01:46]} a3 {[%emt 0:05:43]} 26. Nxc6 {[%emt 0:10:37]} Rd2 {[%emt 0:06:33]} 27. Ne5 {[%emt 0:02:53]} Rxf2 {[%emt 0:00:40]} 28. Kg1 {[%emt 0:41:12]} Rf5 {[%emt 0:00:07]} 29. Nf3 {[%emt 0:00:10]} a2 {[%emt 0:01:10]} 30. Rb3 {[%emt 0:04:19]} Rc5 {[%emt 0:01:46]} 31. Rd1 {[%emt 0:00:22]} e5 {[%emt 0:01:42]} 32. c3 {[%emt 0:01:43]} e4 {[%emt 0:01:12]} 33. Nd4 {[%emt 0:00:35]} Rac8 {[%emt 0:04:29]} 34. Ne2 {[%emt 0:01:50]} Bxc3 {[%emt 0:00:13]} 35. Nxc3 {[%emt 0:00:09]} Rxc3 {[%emt 0:00:03]} 36. Rxc3 {[%emt 0:00:38]} Rxc3 {[%emt 0:00:04]} 37. Kf2 {[%emt 0:00:12]} Rd3 {[%emt 0:05:26]} 38. Rxd3 {[%emt 0:08:53]} exd3 {[%emt 0:00:03]} 39. Ke3 {[%emt 0:00:02]} f5 {[%emt 0:00:28]} 40. Kxd3 {[%emt 0:00:15]} Kf7 {[%emt 0:00:04]} 41. Kc3 {[%emt 0:00:47]} Ke6 {[%emt 0:00:05]} 42. Kb2 {[%emt 0:00:02]} Kd5 {[%emt 0:00:21]} 43. Nc2 {[%emt 0:02:04]} Ke4 {[%emt 0:00:08]} 44. Kxa2 {[%emt 0:00:12]} Kd3 {[%emt 0:00:27]} 45. Ne1+ {[%emt 0:00:26]} Ke2 {[%emt 0:00:05]} 46. Nf3 {[%emt 0:00:04]} Kf2 {[%emt 0:00:17]} 47. Nh4 {[%emt 0:01:10]} f4 {[%emt 0:00:17]} 48. Kb3 {[%emt 0:00:12]} g5 {[%emt 0:07:17]} 49. Nf3 {[%emt 0:00:41]} g4 {[%emt 0:00:15]} 50. Nh4 {[%emt 0:01:01]} Kg1 {[%emt 0:01:27]} 51. h3 {[%emt 0:00:46]} gxh3 {[%emt 0:00:17]} 52. gxh3 {[%emt 0:00:09]} Kh2 {[%emt 0:00:04]} 53. Kc2 {[%emt 0:01:02]} Kxh3 {[%emt 0:00:06]} 54. Nf5 {[%emt 0:00:27]} Kg4 {[%emt 0:00:39]} 55. Nd4 {[%emt 0:00:25]} Kg3 {[%emt 0:01:57]} 56. Nf5+ {[%emt 0:00:35]} Kf3 {[%emt 0:01:33]} 57. Kd2 {[%emt 0:00:23]} h5 {[%emt 0:00:05]} 58. Ke1 {[%emt 0:00:23]} Kg2 {[%emt 0:00:04]} 59. Nh4+ {[%emt 0:00:14]} Kg3 {[%emt 0:00:05]} 60. Nf5+ {[%emt 0:00:06]} Kg4 {[%emt 0:00:13]} 61. Nd4 {[%emt 0:00:16]} h4 {[%emt 0:00:07]} 62. Kf2 {[%emt 0:00:05]} h3 1/2-1/2

[Event "SixDays Budapest IM-A 09-2024"]
[Site "Budapest"]
[Date "2024.09.25"]
[Round "3.3"]
[White "Krishna C R G"]
[Black "Pavan Karthikeya Varma Gunturi"]
[Result "1-0"]
[ECO "A46"]
[WhiteElo "2425"]
[BlackElo "2056"]
[Annotator "RC"]
[PlyCount "109"]
[EventDate "2024.09.24"]
[EventType "tourn"]
[EventCountry "HUN"]
[SourceTitle "playchess.com"]
[Source "ChessBase"]
[SourceQuality "1"]
[TimeControl "5400+30"]

1. d4 {[%emt 0:00:03]} Nf6 {[%emt 0:00:16]} 2. Nf3 {[%emt 0:00:02]} e6 {[%emt 0:00:29]} 3. e3 {[%emt 0:00:03]} b6 {[%emt 0:01:11]} 4. Bd3 {[%emt 0:00:02]} Bb7 {[%emt 0:01:29]} 5. O-O {[%emt 0:00:04]} Be7 {[%emt 0:01:34]} 6. c4 {[%emt 0:00:05]} O-O {[%emt 0:02:50]} 7. Nc3 {[%emt 0:00:02]} d6 {[%emt 0:02:13]} 8. b3 {[%emt 0:01:05]} Nbd7 {[%emt 0:04:40]} 9. Bb2 Re8 10. h3 {[%emt 0:14:18]} Bf8 {[%emt 0:07:37]} 11. d5 {[%emt 0:00:53]} e5 {[%emt 0:02:25]} 12. Nd2 {[%emt 0:00:07]} g6 {[%emt 0:01:37]} 13. Qc2 {[%emt 0:07:27]} Bg7 {[%emt 0:01:02]} 14. b4 {[%emt 0:07:50]} a6 {[%emt 0:03:42]} 15. Rad1 h6 16. Nb3 {[%emt 0:07:02]} Rc8 {[%emt 0:11:34]} 17. Be2 {[%emt 0:05:16]} Qe7 {[%emt 0:02:20]} 18. a4 {[%emt 0:02:18]} c6 {[%emt 0:04:34]} 19. dxc6 {[%emt 0:12:19]} Bxc6 {[%emt 0:00:13]} 20. Qd2 {[%emt 0:00:01]} Bf8 {[%emt 0:01:33]} 21. a5 {[%emt 0:01:19]} Bb7 {[%emt 0:02:47]} 22. Ba3 {[%emt 0:02:28]} Qe6 {[%emt 0:03:58]} 23. axb6 {[%emt 0:09:02]} Nxb6 {[%emt 0:00:38]} 24. Na5 {[%emt 0:00:01]} Ba8 {[%emt 0:02:59]} 25. Rc1 {[%emt 0:02:42]} Red8 26. Rfd1 Qf5 {[%emt 0:08:32]} 27. Bf1 {[%emt 0:04:25]} Qg5 {[%emt 0:02:16]} 28. Qe2 Qf5 {[%emt 0:02:32]} 29. Qd3 {[%emt 0:10:34]} Ne4 {[%emt 0:07:57]} 30. Nxe4 {[%emt 0:01:21]} Bxe4 31. Qb3 {[%emt 0:02:43]} Qe6 {[%emt 0:07:40]} 32. Rd2 {[%emt 0:04:27]} Rd7 {[%emt 0:05:55]} 33. Rcd1 {[%emt 0:02:56]} Rdc7 {[%emt 0:01:50]} 34. b5 {[%emt 0:01:02]} d5 {[%emt 0:02:45]} 35. cxd5 {[%emt 0:04:16]} Bxd5 {[%emt 0:00:07]} 36. Rxd5 {[%emt 0:01:45]} Rc3 {[%emt 0:00:11]} 37. Qb1 {[%emt 0:00:18]} Rxa3 {[%emt 0:00:28]} 38. Rd8 {[%emt 0:00:01]} Rxa5 {[%emt 0:02:07]} 39. Qb4 {[%emt 0:00:01]} Rxd8 {[%emt 0:03:52]} 40. Rxd8 {[%emt 0:00:02]} Nd7 {[%emt 0:00:35]} 41. Qxa5 {[%emt 0:00:29]} axb5 {[%emt 0:00:09]} 42. Qxb5 {[%emt 0:00:51]} Nb6 {[%emt 0:00:15]} 43. Rb8 {[%emt 0:01:07]} Nd7 {[%emt 0:00:20]} 44. Rb7 {[%emt 0:00:30]} Nc5 {[%emt 0:00:11]} 45. Bc4 {[%emt 0:00:02]} Qxc4 {[%emt 0:00:22]} 46. Qxc4 {[%emt 0:00:07]} Nxb7 {[%emt 0:00:08]} 47. Qd5 {[%emt 0:00:10]} Nd6 {[%emt 0:00:05]} 48. Qxe5 {[%emt 0:00:04]} Nf5 {[%emt 0:00:10]} 49. e4 {[%emt 0:00:56]} Ng7 {[%emt 0:00:08]} 50. f4 {[%emt 0:00:02]} Ne6 {[%emt 0:00:24]} 51. f5 {[%emt 0:00:06]} Ng7 {[%emt 0:00:19]} 52. g4 {[%emt 0:00:16]} g5 {[%emt 0:00:14]} 53. Kf1 {[%emt 0:00:34]} Ba3 {[%emt 0:00:41]} 54. Qb8+ {[%emt 0:00:12]} Kh7 {[%emt 0:00:18]} 55. Qa7 {[%emt 0:00:01]} 1-0

[Event "SixDays Budapest IM-A 09-2024"]
[Site "Budapest"]
[Date "2024.09.25"]
[Round "3.4"]
[White "Boyer, Mahel"]
[Black "Bashirov, Kemal"]
[Result "0-1"]
[ECO "A08"]
[WhiteElo "2489"]
[BlackElo "2328"]
[Annotator "TA"]
[PlyCount "92"]
[EventDate "2024.09.24"]
[EventType "tourn"]
[EventCountry "HUN"]
[SourceTitle "playchess.com"]
[Source "ChessBase"]
[SourceQuality "1"]
[TimeControl "5400+30"]

{[%evp 18,92,66,51,57,56,47,51,66,38,32,43,66,35,31,42,62,0,-9,-12,-16,-12,0,0,0,-121,-132,-119,-111,-94,-129,-120,-128,-124,-62,-60,-43,-38,-56,-53,-50,-71,-71,-100,-98,-108,-104,-100,-73,-185,-177,-179,-178,-185,-180,-202,-187,-269,-275,-357,-355,-369,-374,-389,-386,-683,-683,-1354,-1341,-1292,-1237,-5017,-1330,-29991,-29992,-29991,-952]} 1. Nf3 {[%emt 0:01:19]} d5 {[%emt 0:00:59]} 2. g3 {[%emt 0:00:14]} c5 {[%emt 0:00:06]} 3. Bg2 {[%emt 0:00:39]} Nc6 {[%emt 0:00:29]} 4. d4 {[%emt 0:00:06]} cxd4 {[%emt 0:01:13]} 5. Nxd4 {[%emt 0:00:06]} e5 {[%emt 0:01:47]} 6. Nxc6 {[%emt 0:01:57]} bxc6 {[%emt 0:00:04]} 7. c4 {[%emt 0:00:27]} Nf6 {[%emt 0:01:19]} 8. O-O {[%emt 0:04:43]} Be7 {[%emt 0:02:07]} 9. Bg5 {[%emt 0:08:02]} Be6 {[%emt 0:06:07]} 10. Nc3 {[%emt 0:01:01]} e4 {[%emt 0:00:14]} 11. Qa4 {[%emt 0:20:32] [#] Bxf6 is the strong threat.} O-O $1 {[%emt 0:11:15]} 12. Rad1 {[%emt 0:00:28]} (12. Qxc6 Rc8 13. Qa6 Rxc4 $11) 12... Qe8 {[%emt 0:24:40] White is slightly better.} 13. b3 {[%emt 0:12:30]} Rd8 {[%emt 0:01:42]} 14. Qxa7 {[%emt 0:00:32]} h6 {[%emt 0:02:18]} 15. Bf4 {[%emt 0:01:09]} Bb4 {[%emt 0:03:28]} 16. cxd5 {[%emt 0:00:19]} cxd5 {[%emt 0:01:51]} 17. Be5 {[%emt 0:02:04]} (17. Na4 $14) 17... Nd7 $1 $11 {[%emt 0:02:07]} 18. Bd4 {[%emt 0:15:20]} ({Of course not} 18. Nxd5 Bxd5 19. Rxd5 Nxe5 20. Rxd8 Qxd8 21. Bxe4 Qd2 $17) 18... Ra8 {[%emt 0:03:42][%mdl 1024] Black has compensation.} 19. Qb7 {[%emt 0:00:04][%csl LRb4,LRd5]} Rb8 $36 {[%emt 0:08:12][%mdl 2048] Black fights for an advantage.} 20. Qa6 {[%emt 0:02:23]} Qe7 {[%emt 0:00:33] [#] Strongly threatening ...Bxc3.} 21. Qc6 {[%emt 0:00:43]} (21. e3 $11) 21... Rfc8 {[%emt 0:01:35][%cal Bf8c8,Bc8c6,Bc6a6][%mdl 32]} 22. Nxd5 {[%emt 0:00:33]} Rxc6 {[%emt 0:01:30]} 23. Nxe7+ {[%emt 0:00:04]} Bxe7 {[%emt 0:00:03]} 24. Bxe4 {[%emt 0:00:01]} Ra6 {[%emt 0:01:00]} 25. Rd2 {[%emt 0:00:01]} Bf6 {[%emt 0:02:10]} (25... Nf6 $17 26. Bd3 Ra3) 26. Rfd1 $15 {[%emt 0:01:58]} Rd6 {[%emt 0:09:21]} 27. Ba7 {[%emt 0:09:27][%csl LRb8,LRd6]} Rxd2 {[%emt 0:00:24]} 28. Rxd2 {[%emt 0:00:03]} Rc8 {[%emt 0:01:21]} 29. f4 {[%emt 0:00:07]} Bc3 {[%emt 0:03:06]} 30. Rd1 {[%emt 0:00:36]} Nf6 {[%emt 0:00:35]} 31. Bf3 {[%emt 0:00:04]} Bb4 {[%emt 0:01:49]} 32. Rd4 {[%emt 0:04:25]} Be7 {[%emt 0:01:24]} 33. b4 {[%emt 0:01:17]} (33. Kg2 $17 {was called for.}) 33... Rc7 {[%emt 0:06:21]} 34. Bb6 {[%emt 0:06:23]} Rc1+ {[%emt 0:00:12]} 35. Kg2 {[%emt 0:00:41]} Bxa2 {[%emt 0:00:35]} 36. Ba5 {[%emt 0:00:45]} Be6 {[%emt 0:01:18]} 37. e4 {[%emt 0:00:36]} (37. h3 {might work better.}) 37... Rc2+ $19 {[%emt 0:00:33]} 38. Kf1 {[%emt 0:00:53]} Ng4 {[%emt 0:01:05]} ({But not} 38... Rxh2 39. f5 Bc8 40. e5 $19) 39. Ke1 {[%emt 0:00:00]} Nxh2 {[%emt 0:00:45]} 40. Bd1 {[%emt 0:00:23]} Rb2 {[%emt 0:00:34]} 41. f5 $2 {[%emt 0:02:28]} (41. Rd2 Rxd2 (41... Bxb4 42. Bxb4 Rxb4 43. Rxh2 $15) 42. Kxd2) 41... Bf6 {[%emt 0:00:23]} 42. Rd3 {[%emt 0:01:30]} Bc4 43. Ra3 Bd4 {[%emt 0:00:54][%csl Gb2][%cal Rd4f2]} 44. Ba4 {[%emt 0:00:01]} Nf1 {[%emt 0:00:34]} (44... Ng4 $142 45. Kd1 Ne3+ 46. Kc1 Re2) 45. Kd1 {[%emt 0:00:55]} Rd2+ {[%emt 0:00:28]} 46. Kc1 {[%emt 0:00:02]} Bb2+ {[%emt 0:00:03] Weighted Error Value: White=0.76/Black=0.22 (precise) .  Mistake:       	White=5     	Black=1      Inaccurate:     	White=4     	---        OK:         	White=14    	Black=15     Best:        	White=1     	Black=1      Strong:       	---       	Black=2} 0-1